Cogmind - Beta 14 @@@ ROGUE MODE // 2025.01.08 @ 13:25:41 Player: puppuppit Result: Destroyed by G-47 Trooper with Particle Gun Performance ------------- Evolutions (2) 1000 Regions Visited (9) 1800 Robots Destroyed (146) 730 Value Destroyed (7720) 7720 Prototype IDs (40) 800 Alien Tech Used (0) 0 Bonus (3387) 3387 TOTAL SCORE: 15437 Bonus ------- High Alert Combat Kills 2410 Follower Combat Kills 294 Entered Garrisons 400 Aligned with FarCom 300 Friendly Fire -17 Cogmind --------- Core Integrity 0/550 Matter 223/300 Energy 125/125 System Corruption 9% Temperature Cool (97) Movement Hovering (57) Location -8/Materials Parts ------- > --- POWER (1) -------- Light Ion Engine > --- PROPULSION (5) --- Compact Wheel Improved Hover Unit Gravmag System Gravmag System > --- UTILITY (2) ------ Improved Heat Sink Medium Storage Unit > --- WEAPON (3) ------- Heavy Assault Rifle Missile Launcher > --- INVENTORY (10) --- Small Matter Pod (50) Advanced Weight Redist. System Hacking Suite Authchip [R/Combat] Authchip [R/Combat] Authchip [R/Combat] Shock Rifle AWS/Autocannon Peak State ------------ > --- POWER ------------ Micro Nuclear Core > --- PROPULSION ------- Armored Wheel Armored Huge Wheel Armored Huge Wheel > --- UTILITY ---------- Medium Storage Unit Improved Medium Armor Plating > --- WEAPON ----------- AWS/Autocannon > --- INVENTORY -------- Armored Huge Wheel Armored Huge Wheel Small Matter Pod Shock Rifle Shock Rifle [Rating: 59] Favorites ----------- Power Light Nuclear Core Engine Improved Ion Engine Power Core Light Nuclear Core Propulsion Armored Huge Wheel Wheel Armored Huge Wheel Hover Unit Gravmag System Flight Unit Xenon Bombardment Thruster Utility Medium Storage Unit Device Improved Heat Sink Storage Medium Storage Unit Processor Improved Targeting Computer Hackware System Shield Protection Improved Medium Armor Plating Weapon Shotgun Energy Gun Shock Rifle Ballistic Gun Shotgun Ballistic Cannon AWS/Autocannon Launcher Missile Launcher Special Weapon Remote Datajack Build | -11 -10 -10 -10 -9 -8 -8 -8 -8 -8 ------- Run | Yrd Mat Min Exi Min Mat Gar Mat Gar Mat Slots Evolved 4 | . . . . . 4 . . . . Power . | . . . . . . . . . . Propulsion 3 | . . . . . 3 . . . . Utility . | . . . . . . . . . . Weapon 1 | . . . . . 1 . . . . Parts Attached 136 | 6 7 2 1 1 26 26 35 24 8 Power 17 | 1 . . . . 5 5 3 2 1 Engine 8 | 1 . . . . 5 1 . . 1 Core 9 | . . . . . . 4 3 2 . Reactor . | . . . . . . . . . . Propulsion 31 | 2 2 1 1 . 6 2 11 3 3 Treads . | . . . . . . . . . . Leg . | . . . . . . . . . . Wheel 13 | 2 . . . . 3 2 5 . 1 Hover 14 | . 2 1 1 . 3 . 2 3 2 Flight 4 | . . . . . . . 4 . . Utility 24 | 1 3 . . . 4 3 8 3 2 Device 10 | . . . . . 2 1 3 3 1 Storage 5 | 1 2 . . . 1 . 1 . . Processor 3 | . 1 . . . . . 1 . 1 Hackware 1 | . . . . . 1 . . . . Protection 5 | . . . . . . 2 3 . . Artifact . | . . . . . . . . . . Weapon 64 | 2 2 1 . 1 11 16 13 16 2 Energy Gun 8 | 1 . . . . . 2 4 1 . Energy Cannon . | . . . . . . . . . . Ballistic Gun 42 | 1 2 1 . 1 9 7 7 14 . Ballistic Cannon 11 | . . . . . 2 7 2 . . Launcher 2 | . . . . . . . . . 2 Special Weapon 1 | . . . . . . . . 1 . Impact Weapon . | . . . . . . . . . . Slashing Weapon . | . . . . . . . . . . Piercing Weapon . | . . . . . . . . . . Special Melee Weapon . | . . . . . . . . . . Unidentified Prototypes 1 | . . . . . . . 1 . . Parts Lost 22 | . . 2 . . 1 2 6 11 . Power 3 | . . . . . . 1 . 2 . Propulsion 10 | . . 1 . . 1 . 4 4 . Utility 2 | . . . . . . 1 1 . . Weapon 7 | . . 1 . . . . 1 5 . Highest Loss Streak 6 | . . 2 . . 1 1 3 6 . To Critical Strikes . | . . . . . . . . . . Average Slot Usage (%) 72 | . 81 85 85 85 75 63 73 69 75 Engine 2 | . 2 . . . 8 . . . 8 Core 4 | . . . . . . 8 8 5 . Wheel 16 | . 27 . . . 18 27 17 8 8 Hover 8 | . 1 28 28 28 5 . 6 13 22 Device 4 | . . . . . 2 4 1 9 9 Storage 9 | . 14 14 14 14 9 9 9 9 9 Processor 2 | . 8 14 14 14 . . . . . Hackware 1 | . . . . . 6 . . . . Protection 2 | . . . . . . 4 5 . . Energy Gun 3 | . 5 . . . 2 2 5 1 8 Ballistic Gun 14 | . 22 28 28 28 21 1 11 21 9 Ballistic Cannon 1 | . . . . . . 4 1 . . Peak Build Rating 59 | 6 10 10 13 15 54 59 59 36 28 Average Rating 32 | 4 8 9 10 14 34 46 41 30 24 On Entrance 17 | . 6 10 9 13 15 35 35 34 22 Naked Turns . | . . . . . . . . . . Heaviest Build 83 | 10 20 11 11 11 72 83 83 27 26 Greatest Support 68 | 26 26 12 12 12 68 68 68 38 25 Greatest Overweight (x) 4 | . . . . . 1 1 4 3 1 Average Overweight (x) . | . . . . . . . . . . Largest Inventory Capacity 10 | 8 10 8 8 8 10 10 10 10 10 Average Capacity 9 | 6 9 8 8 8 8 10 10 10 10 Most Carried 10 | . 10 8 8 8 10 10 10 10 10 Average Carried 8 | . 4 7 7 8 8 8 9 9 9 Final Capacity 10 | 8 8 8 8 8 10 10 10 10 10 Final Carried 10 | . 8 6 8 8 10 10 9 10 10 Class Distribution -------------------- 39% | Skirmisher 36% | Mutant 11% | Scavenger-Mutant 11% | Scavenger-Skirmisher Dominant Class ---------------- Mutant | -10/Materials Mutant | -10/Mines Mutant | -10/Exiles Mutant | -9/Mines Skirmisher | -8/Materials Skirmisher | -8/Garrison Skirmisher | -8/Materials Scavenger-Skirmisher | -8/Garrison Scavenger-Mutant | -8/Materials Resources | -11 -10 -10 -10 -9 -8 -8 -8 -8 -8 ----------- Run | Yrd Mat Min Exi Min Mat Gar Mat Gar Mat Matter Collected 3620 | 40 290 86 . 65 855 390 820 825 249 Remotely . | . . . . . . . . . . Salvage Created 5085 | . 389 34 . 19 855 926 1818 739 305 Parts 294 | . 37 4 . 3 49 48 99 39 15 Haulers Intercepted 7 | . . . . . 3 . 4 . . Recyclers Shooed 6 | . 1 . . . 2 . 2 . 1 Parts Field Recycled . | . . . . . . . . . . Retrieved Matter . | . . . . . . . . . . Parts Self-Destructed . | . . . . . . . . . . Prevented . | . . . . . . . . . . Kills | -11 -10 -10 -10 -9 -8 -8 -8 -8 -8 ------- Run | Yrd Mat Min Exi Min Mat Gar Mat Gar Mat Combat Hostiles Destroyed 105 | . 8 1 . . 19 31 28 16 2 Guns 54 | . 8 1 . . 15 . 14 16 . Cannons 48 | . . . . . 3 31 14 . . AOE 3 | . . . . . 1 . . . 2 Classes Destroyed 18 | . 6 2 . 1 3 4 1 1 . Worker 8 | . . 2 . . 4 . 2 . . Builder 3 | . 1 . . . . . 1 . 1 Tunneler 2 | . . . . 1 1 . . . . Hauler 7 | . . . . . 3 . 4 . . Recycler 10 | . 1 . . . 2 . 4 . 3 Mechanic 1 | . . . . . . . 1 . . Operator 2 | . 1 . . . . . 1 . . Watcher 8 | . 3 . . . . . 4 . 1 Swarmer 15 | . 3 . . . 8 . 4 . . Cutter 3 | . . . . . . . . 3 . Grunt 49 | . 5 . . . 5 18 12 8 1 Brawler 2 | . . . . . . 1 1 . . Duelist 7 | . . . . . 2 1 3 . 1 Sentry 18 | . . . . . 4 7 6 1 . Demolisher 1 | . . 1 . . . . . . . Specialist 1 | . . . . . . 1 . . . Hunter 5 | . . . . . . 2 2 1 . Programmer 4 | . . . . . . 1 . 3 . Best Kill Streak 10 | . 5 2 . 1 4 7 10 5 3 Combat Bots Only 8 | . 3 1 . . 4 7 8 5 1 Max Kills in Single Turn 2 | . 2 1 . 1 1 1 2 1 1 Gunslinging 1 | . 1 . . . . . 1 . . Exploded 1 | . . . . . 1 . . . 1 Melee . | . . . . . . . . . . Uniques/NPCs Destroyed . | . . . . . . . . . . Combat | -11 -10 -10 -10 -9 -8 -8 -8 -8 -8 -------- Run | Yrd Mat Min Exi Min Mat Gar Mat Gar Mat Hostile Shots Fired 400 | . 22 6 . . 88 76 101 104 3 Missed 116 | . 3 2 . . 20 30 37 22 2 Damage Taken 4395 | . 196 178 . . 859 696 1042 1411 13 Core 649 | . 72 15 . . 66 30 119 334 13 Absorbed by Shields 12 | . . . . . . 12 . . . Redirected to Shielding 10 | . . . . . . . 10 . . Regen/Repaired (Parts) 76 | . . . . . 50 . . . 26 Core Remaining (%) 82 | 100 . . . 65 . . . . . Volleys Fired 326 | . 24 6 . 1 66 34 80 89 26 Largest 3 | . 2 2 . 2 3 1 3 3 3 Hottest 111 | . 60 46 . 47 70 50 111 81 109 Shots Fired 771 | . 48 12 . 2 168 119 207 165 50 Gun 646 | . 48 12 . 2 163 35 179 162 45 Cannon 117 | . . . . . 5 84 28 . . Launcher 5 | . . . . . . . . . 5 Special 3 | . . . . . . . . 3 . Kinetic 639 | . 43 12 . 2 144 104 148 161 25 Thermal 38 | . 5 . . . 24 . 9 . . Explosive 5 | . . . . . . . . . 5 Electromagnetic 86 | . . . . . . 15 50 1 20 Robot Hit Streak 37 | . 7 6 . 3 10 37 15 9 18 Robot Miss Streak 8 | . 5 3 . 5 8 2 4 5 3 Penetration Max 1 | . . . . . . . 1 1 . Secondary Targets 11 | . 1 . . . 3 . 4 3 . Max Gunslinging Chain 1 | . 1 . . . 1 . 1 1 . Autonomous 118 | . . . . . 5 84 29 . . Shots Hit Robots 468 | . 31 9 . 1 113 77 135 80 22 Core Hits 220 | . 23 5 . 1 51 27 64 33 16 Critical Kills . | . . . . . . . . . . Critical Parts Destroyed 7 | . . . . . . . 1 5 1 Critical Strikes 22 | . . . . . 1 8 6 5 2 Burn 2 | . . . . . . . 2 . . Destroy 7 | . . . . . . . 1 5 1 Blast 12 | . . . . . 1 8 3 . . Corrupt 1 | . . . . . . . . . 1 Melee Attacks . | . . . . . . . . . . Impact . | . . . . . . . . . . Slashing . | . . . . . . . . . . Piercing . | . . . . . . . . . . Sneak Attacks . | . . . . . . . . . . Combat Hostiles . | . . . . . . . . . . Follow-up Attacks . | . . . . . . . . . . Damage Inflicted 16452 | . 410 133 . 36 2193 6687 4290 1816 887 Guns 6509 | . 410 133 . 36 1650 15 2058 1816 391 Cannons 9347 | . . . . . 465 6672 2210 . . Explosions 589 | . . . . . 71 . 22 . 496 Melee . | . . . . . . . . . . Ramming 7 | . . . . . 7 . . . . Kinetic 14669 | . 387 133 . 36 1968 6672 3491 1798 184 Thermal 482 | . 23 . . . 218 . 168 . 73 Explosive 423 | . . . . . . . . . 423 Electromagnetic 871 | . . . . . . 15 631 18 207 Impact . | . . . . . . . . . . Slashing . | . . . . . . . . . . Piercing . | . . . . . . . . . . Highest Corruption 9 | . . . . . . 1 3 9 9 Average Corruption 4 | . . . . . . 1 1 5 9 Corruption Purged 1 | . . . . . . . 1 . . Corruption Blocked . | . . . . . . . . . . Effects 70 | . . . . . . 6 14 31 19 Message Errors 17 | . . . . . . 1 3 8 5 Matter Fused 19 | . . . . . . 2 3 8 6 Heat Flow Errors 15 | . . . . . . 2 3 8 2 Energy Discharges 4 | . . . . . . . 2 1 1 Parts Rejected 2 | . . . . . . . 1 1 . Data Loss (minor) 7 | . . . . . . . 1 2 4 Data Loss (major) 3 | . . . . . . . . 3 . Misfires 2 | . . . . . . 1 1 . . Alerts 1 | . . . . . . . . . 1 Overload Shots . | . . . . . . . . . . Overflow Damage 1255 | . . . . . 44 811 400 . . Projectiles 1255 | . . . . . 44 811 400 . . Explosions . | . . . . . . . . . . Melee . | . . . . . . . . . . Knockbacks 19 | . . . . . 3 13 3 . . Impact . | . . . . . . . . . . Kinetic 18 | . . . . . 2 13 3 . . Secondary 1 | . . . . . 1 . . . . Self-Inflicted Damage 57 | . . . . . 3 . 54 . . Shots 1 | . . . . . . . 1 . . Rammed 2 | . . . . . 2 . . . . Targets Rammed 2 | . . . . . 2 . . . . Kicked . | . . . . . . . . . . Crushed . | . . . . . . . . . . Highest Temperature 444 | . 20 . . . 43 133 444 239 264 Average Temperature 91 | . 11 . . . 13 17 126 57 147 Received Heat Transfer 1581 | . 24 . . . 279 234 513 522 9 Effects 5 | . . . . . . . 5 . . Energy Bleed 3 | . . . . . . . 3 . . Short Circuit 1 | . . . . . . . 1 . . Damage (minor) 1 | . . . . . . . 1 . . Siege Activations . | . . . . . . . . . . Robots Corrupted . | . . . . . . . . . . Combat Hostiles . | . . . . . . . . . . Parts Fried 3 | . . . . . . . 3 . . Impact Corruptions . | . . . . . . . . . . Robots Melted . | . . . . . . . . . . Combat Hostiles . | . . . . . . . . . . Parts Melted 2 | . . . . . 2 . . . . Heat Transferred 1300 | . 50 . . . 679 . 421 . 150 Parts Sabotaged . | . . . . . . . . . . Parts Stolen . | . . . . . . . . . . Parts Stripped . | . . . . . . . . . . Power Chain Reactions 2 | . . . . . . . 1 . 1 Alert | -11 -10 -10 -10 -9 -8 -8 -8 -8 -8 ------- Run | Yrd Mat Min Exi Min Mat Gar Mat Gar Mat Peak Influence 2045 | . 275 124 . 5 391 1947 1818 2045 1302 Initial 1181 | . . 44 . . 1 254 949 1181 996 Average 991 | . 93 78 . 1 172 1151 1477 1686 1131 Maximum Alert Level 5 | . 1 . . . 1 5 5 5 4 Low Security (%) 23 | 100 86 100 . 100 61 . . . . Level 1 9 | . 13 . . . 38 7 . . . Level 2 4 | . . . . . . 18 . . . Level 3 9 | . . . . . . 20 8 . 42 Level 4 27 | . . . . . . 27 55 37 57 Level 5 25 | . . . . . . 25 35 62 . High Security . | . . . . . . . . . . Max Security . | . . . . . . . . . . Squads Dispatched 13 | . 2 . . . 1 . 8 . 2 Investigation 4 | . 1 . . . . . 3 . . Extermination . | . . . . . . . . . . Reinforcement 3 | . 1 . . . . . 1 . 1 Assault 5 | . . . . . . . 4 . 1 Garrison 1 | . . . . . 1 . . . . Intercept . | . . . . . . . . . . Searches Triggered . | . . . . . . . . . . Construction Impeded . | . . . . . . . . . . Haulers Reinforced . | . . . . . . . . . . Active Scanning Responses . | . . . . . . . . . . Cargo Convoy Interrupts . | . . . . . . . . . . Stealth | -11 -10 -10 -10 -9 -8 -8 -8 -8 -8 --------- Run | Yrd Mat Min Exi Min Mat Gar Mat Gar Mat Distress Signals 7 | . . . . . 2 . 3 . 2 Communications Jammed . | . . . . . . . . . . Distress Signals . | . . . . . . . . . . Times Spotted 169 | . 14 4 . . 20 35 59 20 17 Peak Tracking Total 13 | . 5 2 . . 8 6 13 5 7 Tactical Retreats 15 | . . 1 . . 1 2 8 1 2 Traps | -11 -10 -10 -10 -9 -8 -8 -8 -8 -8 ------- Run | Yrd Mat Min Exi Min Mat Gar Mat Gar Mat Traps Triggered 22 | . 3 . . . . 13 2 4 . Indirectly . | . . . . . . . . . . Trap Hack Attempts . | . . . . . . . . . . Triggered . | . . . . . . . . . . Disarmed . | . . . . . . . . . . Reprogrammed 4 | . . . . . . . . . 4 Reused 1 | . . . . . . . . . 1 Traps Extracted . | . . . . . . . . . . Installed . | . . . . . . . . . . Triggered 2 | . . 1 . . . . . . 1 Machines | -11 -10 -10 -10 -9 -8 -8 -8 -8 -8 ---------- Run | Yrd Mat Min Exi Min Mat Gar Mat Gar Mat Machines Disabled 31 | . . . . . 3 17 3 6 2 Max in Single Turn 3 | . . . . . 3 2 2 2 1 Garrison Relay 11 | . . . . . . 8 . 3 . Phase Generator 2 | . . . . . . 1 . 1 . Machines Repaired . | . . . . . . . . . . Machines Dismantled . | . . . . . . . . . . Machines Sabotaged . | . . . . . . . . . . Overloaded Fab Kills . | . . . . . . . . . . Hacking | -11 -10 -10 -10 -9 -8 -8 -8 -8 -8 --------- Run | Yrd Mat Min Exi Min Mat Gar Mat Gar Mat Machines Accessed 35 | . 5 . 5 . 9 2 6 5 3 Terminals 25 | . 5 . . . 7 2 4 5 2 Fabricators . | . . . . . . . . . . Repair Stations 2 | . . . . . 1 . . . 1 Recycling Units 1 | . . . . . . . 1 . . Scanalyzers . | . . . . . . . . . . Garrison Access 2 | . . . . . 1 . 1 . . Total Hacks 141 | . 17 . 50 . 38 2 14 12 8 Successful 93 | . 5 . 50 . 19 2 7 5 5 Failed 47 | . 11 . . . 19 . 7 7 3 Catastrophic 6 | . 1 . . . 3 . . 1 1 Database Lockouts 1 | . 1 . . . . . . . . Manual 36 | . 7 . 2 . 23 . 2 . 2 Terminals 80 | . 17 . . . 32 2 12 12 5 Fabricators . | . . . . . . . . . . Repair Stations 7 | . . . . . 4 . . . 3 Recycling Units 1 | . . . . . . . 1 . . Scanalyzers . | . . . . . . . . . . Garrison Access 3 | . . . . . 2 . 1 . . Terminal Hacks 84 | . 5 . 50 . 15 2 5 5 2 Record 50 | . . . 49 . 1 . . . . Robot Analysis 13 | . 2 . . . 9 . 2 . . Prototype ID Bank 9 | . 2 . . . 3 . 3 . 1 Open Door 2 | . . . . . . 1 . 1 . Level Access Points 1 | . . . . . 1 . . . . Branch Access Points 1 | . 1 . . . . . . . . Emergency Access Points 2 | . . . . . . 1 . 1 . Terminal Index 1 | . . . . . 1 . . . . Reprogram Traps 1 | . . . . . . . . . 1 Garrison Registry 1 | . . . . . . . . 1 . Patrol Navigation 1 | . . . . . . . . 1 . Security Stations 1 | . . . . . . . . 1 . Derelict Proto ID Bank 1 | . . . 1 . . . . . . Fabricator Hacks . | . . . . . . . . . . Repair Station Hacks 6 | . . . . . 3 . . . 3 Scan Component 2 | . . . . . 1 . . . 1 Repair 2 | . . . . . 1 . . . 1 Refit 2 | . . . . . 1 . . . 1 Recycling Unit Hacks 1 | . . . . . . . 1 . . Retrieve Components 1 | . . . . . . . 1 . . Scanalyzer . | . . . . . . . . . . Garrison Access Hacks 2 | . . . . . 1 . 1 . . Unlock Access 2 | . . . . . 1 . 1 . . Unauthorized Hacks . | . . . . . . . . . . Terminals . | . . . . . . . . . . Fabricators . | . . . . . . . . . . Repair Stations . | . . . . . . . . . . Recycling Units . | . . . . . . . . . . Scanalyzers . | . . . . . . . . . . Garrison Access . | . . . . . . . . . . Data Cores Recovered . | . . . . . . . . . . Used . | . . . . . . . . . . Hacking Detections 22 | . 5 . . . 8 . 4 3 2 Full Trace Events 9 | . 4 . . . 1 . 3 1 . Feedback Events . | . . . . . . . . . . Feedback Blocked . | . . . . . . . . . . Robot Schematics Acquired . | . . . . . . . . . . Robots Built . | . . . . . . . . . . Authchips . | . . . . . . . . . . Time . | . . . . . . . . . . Total Robot Build Rating . | . . . . . . . . . . Part Schematics Acquired . | . . . . . . . . . . Parts Built . | . . . . . . . . . . Authchips . | . . . . . . . . . . Time . | . . . . . . . . . . Total Part Build Rating . | . . . . . . . . . . Parts Repaired 2 | . . . . . 1 . . . 1 Time 88 | . . . . . 44 . . . 44 Parts Recycled . | . . . . . . . . . . Recycled Matter . | . . . . . . . . . . Retrieved Matter . | . . . . . . . . . . Retrieved Components 7 | . . . . . . . 7 . . Parts Scanalyzed . | . . . . . . . . . . Part Schematics Acquired . | . . . . . . . . . . Parts Damaged . | . . . . . . . . . . Bothacking | -11 -10 -10 -10 -9 -8 -8 -8 -8 -8 ------------ Run | Yrd Mat Min Exi Min Mat Gar Mat Gar Mat Used RIF Installer . | . . . . . . . . . . Robots Hacked . | . . . . . . . . . . Non-combat . | . . . . . . . . . . Combat . | . . . . . . . . . . Robot Hacks Applied . | . . . . . . . . . . Relay Couplers Released 42 | . . . . . . 29 . 13 . Machine Destruction 42 | . . . . . . 29 . 13 . Fabnet Peak Effective % . | . . . . . . . . . . Robots Rewired 4 | . . . . . . . 1 3 . Allies Hacked . | . . . . . . . . . . Hacks Repelled . | . . . . . . . . . . Allies | -11 -10 -10 -10 -9 -8 -8 -8 -8 -8 -------- Run | Yrd Mat Min Exi Min Mat Gar Mat Gar Mat Total Allies 6 | . . . . . . 2 1 3 . Largest Group 3 | . . . . . . 2 2 3 3 Highest-Rated Group 90 | . . . . . . 56 56 90 90 Highest-Rated Ally 39 | . . . . . . 31 31 39 39 Total Orders 2 | . . . . . . . . . 2 STAY 1 | . . . . . . . . . 1 FOLLOW 1 | . . . . . . . . . 1 Ally Attacks 72 | . . . . . . 9 17 10 36 Total Damage 1155 | . . . . . . 130 210 200 615 Kills 14 | . . . . . . 2 2 2 8 Allies Corrupted 1 | . . . . . . . 1 . . Allies Melted . | . . . . . . . . . . Intel | -11 -10 -10 -10 -9 -8 -8 -8 -8 -8 ------- Run | Yrd Mat Min Exi Min Mat Gar Mat Gar Mat Robot Analysis Total 13 | . 2 . . . 9 . 2 . . Derelict Logs Recovered 1 | . . . . 1 . . . . . Drone Launches . | . . . . . . . . . . Drone Recoveries . | . . . . . . . . . . Exploration | -11 -10 -10 -10 -9 -8 -8 -8 -8 -8 ------------- Run | Yrd Mat Min Exi Min Mat Gar Mat Gar Mat Turns Passed 6726 | 40 560 133 249 240 1055 1594 1049 1350 456 Spaces Moved 6073 | 35 511 184 431 420 789 1257 729 1234 483 Core 2 | 1 . . . . . . . 1 . Treads . | . . . . . . . . . . Legs . | . . . . . . . . . . Wheels 3505 | 34 496 . . . 699 1257 480 539 . Hover 2351 | . 15 184 431 420 90 . 34 694 483 Flight 215 | . . . . . . . 215 . . Fastest Speed 31 | 50 56 56 56 56 48 96 31 52 56 Average Speed 81 | 90 89 56 56 56 94 102 88 75 58 Slowest Speed 360 | 100 90 56 56 56 115 111 360 200 117 Overloaded Moves . | . . . . . . . . . . Propulsion Burnouts . | . . . . . . . . . . Robots Hopped 9 | . . . . . . . 9 . . Cave-ins Triggered . | . . . . . . . . . . Exploration Rate (%) 61 | 3 72 26 90 99 57 93 58 94 26 Regions Visited 9 Branch Regions 3 Pre-discovered Areas 1 | . . . 1 . . . . . . Known Exits Taken 3 | . 1 . . . 1 . 1 . . Unknown Exits Taken 4 | 1 . 1 1 1 . . . . . Scrap Searched 2 | . . 1 . 1 . . . . . Spaces Dug . | . . . . . . . . . . Terrain Destroyed 420 | . . . . . 53 229 31 77 30 Melee . | . . . . . . . . . . Projectile 19 | . . . . . . 13 4 2 . AOE 401 | . . . . . 53 216 27 75 30 Terrain Rammed . | . . . . . . . . . . Walls Destroyed . | . . . . . . . . . . Machines Disabled . | . . . . . . . . . . Actions | -11 -10 -10 -10 -9 -8 -8 -8 -8 -8 --------- Run | Yrd Mat Min Exi Min Mat Gar Mat Gar Mat Total 7319 | 40 570 201 439 422 986 1537 996 1519 609 Wait 528 | . 10 10 . . 70 97 129 129 83 Move 6049 | 34 510 183 430 419 788 1256 713 1233 483 Hop 6 | . . . . . . . 6 . . Pick Up 48 | . 11 . 4 . 7 12 4 8 2 Fast Attach 64 | 6 4 . . . 12 2 21 13 6 Attach 41 | . 2 2 . . 6 17 8 4 2 Detach 33 | . 2 . . . 6 9 12 1 3 Swap 31 | . 1 . 1 1 8 7 6 7 . Drop 79 | . 6 . 4 1 21 16 15 12 4 Fire 326 | . 24 6 . 1 66 34 80 89 26 Melee . | . . . . . . . . . . Ram 2 | . . . . . 2 . . . . Kick . | . . . . . . . . . . Crush . | . . . . . . . . . . Escape Stasis 110 | . . . . . . 87 . 23 . Rewire 2 | . . . . . . . 2 . . Trap . | . . . . . . . . . . Miscellaneous . | . . . . . . . . . . Route ------- -11/Scrapyard -10/Materials (discovered 3 exits: [*Mat x2] / *Min) -10/Mines -10/Exiles -9/Mines (discovered 2 exits: *Mat x2) -8/Materials (discovered 4 exits: *Fac x3 / Gar) -8/Garrison (discovered 4 exits: *Mat x4) -8/Materials (discovered 2 exits: *Fac / Gar) -8/Garrison (discovered 3 exits: *Mat x3) -8/Materials History --------- Turn | Location | Event 13 | -11/Scrapyard | Discovered new exit (range 16) 41 | -11/Scrapyard | Entered Materials 126 | -10/Materials | Discovered new exit (range 7) 184 | -10/Materials | Discovered new exit (range 7) 210 | -10/Materials | Central database locked down 238 | -10/Materials | Discovered new exit (range 16) 247 | -10/Materials | Identified exit to Mines 311 | -10/Materials | Build established: Mutant 601 | -10/Materials | Entered Mines 633 | -10/Mines | Assembled infested the area 664 | -10/Mines | Deemed a non-threat by the Exiles lab entrance 664 | -10/Mines | Discovered new exit (range 5) 734 | -10/Mines | Entered Exiles 752 | -10/Exiles | Met 8R-AWN 761 | -10/Exiles | Met EX-HEX 786 | -10/Exiles | Met EX-DEC 796 | -10/Exiles | Learned location of Zion (-6) 819 | -10/Exiles | Visited The Gauntlet 884 | -10/Exiles | Met EX-BIN 893 | -10/Exiles | Aligned with FarCom system 893 | -10/Exiles | Given EX-Vault access code 915 | -10/Exiles | Opened EX-Vault 922 | -10/Exiles | Found AWS/Autocannon 939 | -10/Exiles | Warned to stay clear of 0b10 Research branches 978 | -10/Exiles | Discovered new exit (range 10) 983 | -10/Exiles | Left Exiles lab with AWS/Autocannon 983 | -10/Exiles | Entered Mines 996 | -9/Mines | Discovered new exit (range 16) 1036 | -9/Mines | A weapon hastily lodged in a ceiling crevice suddenly fell to the ground 1184 | -9/Mines | Discovered new exit (range 9) 1223 | -9/Mines | Entered Materials 1223 | -8/Materials | Evolved 4 slots: Propulsion x3, Weapon x1 1539 | -8/Materials | Identified exit to Factory 1553 | -8/Materials | Build established: Skirmisher 1821 | -8/Materials | Repaired Mak. Shrapnel Gun 2241 | -8/Materials | Garrison activated, responded to threat 2275 | -8/Materials | Identified exit to Garrison 2278 | -8/Materials | Entered Garrison 2360 | -8/Garrison | Triggered checkpoint 2375 | -8/Garrison | Garrison Relay disabled 2388 | -8/Garrison | Triggered checkpoint 2504 | -8/Garrison | Discovered new exit (range 5) 2583 | -8/Garrison | Phase Generator disabled 2614 | -8/Garrison | Triggered checkpoint 2770 | -8/Garrison | Destroyed 7 combat bots 2840 | -8/Garrison | Triggered checkpoint 2914 | -8/Garrison | Triggered checkpoint 3030 | -8/Garrison | Discovered new exit (range 10) 3086 | -8/Garrison | Rescued a captive Derelict 3094 | -8/Garrison | Rescued a captive Derelict 3148 | -8/Garrison | Triggered checkpoint 3161 | -8/Garrison | Garrison Relay disabled 3293 | -8/Garrison | Discovered new exit (range 10) 3318 | -8/Garrison | Triggered checkpoint 3461 | -8/Garrison | Garrison Relay disabled 3470 | -8/Garrison | Garrison Relay disabled 3472 | -8/Garrison | Garrison Relay disabled 3478 | -8/Garrison | Garrison Relay disabled 3483 | -8/Garrison | Garrison Relay disabled 3586 | -8/Garrison | Discovered new exit (range 11) 3650 | -8/Garrison | Triggered checkpoint 3678 | -8/Garrison | Garrison Relay disabled 3872 | -8/Garrison | Entered Materials 3872 | -8/Materials | Accompanied by 2 allies 4078 | -8/Materials | Destroyed 8 combat bots 4167 | -8/Materials | AWS/Autocannon suddenly broke down 4272 | -8/Materials | First assault squad dispatched 4381 | -8/Materials | Discovered exit to Factory (range 10) 4538 | -8/Materials | Lost 3 parts (3n) 4918 | -8/Materials | Identified exit to Garrison 4921 | -8/Materials | Entered Garrison 4941 | -8/Garrison | Core integrity fell below 50% 5054 | -8/Garrison | Garrison Relay disabled 5195 | -8/Garrison | Discovered new exit (range 11) 5269 | -8/Garrison | Garrison Relay disabled 5315 | -8/Garrison | Triggered checkpoint 5386 | -8/Garrison | Discovered new exit (range 14) 5406 | -8/Garrison | Discovered new exit (range 76) 5406 | -8/Garrison | Discovered new exit (range 51) 5406 | -8/Garrison | Discovered new exit (range 5) 5407 | -8/Garrison | Build established: Scavenger-Skirmisher 5425 | -8/Garrison | Phase Generator disabled 5436 | -8/Garrison | Learned Materials security intel 5605 | -8/Garrison | Core integrity fell below 20% 5632 | -8/Garrison | Lost 3 parts (1p1n1w) 5693 | -8/Garrison | Triggered checkpoint 5901 | -8/Garrison | Triggered checkpoint 5914 | -8/Garrison | Lost 6 parts (1p1n4w) 6271 | -8/Garrison | Entered Materials 6271 | -8/Materials | Accompanied by 3 allies 6351 | -8/Materials | Repaired Gravmag System 6407 | -8/Materials | Build established: Scavenger-Mutant 6671 | -8/Materials | First assault squad dispatched 6727 | -8/Materials | Destroyed by G-47 Trooper with Particle Gun Last Messages --------------- 06670_ U-05 Engineer builds a Wall. 06670_ U-05 Engineer lays Concrete. 06671_ ALERT: Significant disruption in Zone 4A, assault force dispatched. 06671_ Acquired 6 matter. 06672_ U-05 Engineer builds a Wall. 06674_ System corrupted: Energy discharge (-45). 06692_ U-05 Engineer destroyed. 06695_ Acquired 3 matter. 06698_ C-30 ARC bursts open, deploying its payload. 06698_ G-50 Soldier unfolds itself. 06698_ G-47 Trooper unfolds itself. 06698_ L-31 Rogue unfolds itself. 06698_ I-25 Savior unfolds itself. 06701_ S QU= 06714_ U-05 Engineer builds a Wall. 06718_ System corrupted: Heat flow error (+276). 06724_ Purification Channel disabled. 06726_ R-06 Scavenger destroyed. Map ----- +----------------------------------------------------+ | ????????????????????????# ##" ## #??????? | | ?????????????????##### = # ## #??????? | | ?????????????????# % ## ## #??????? | | ?????????????????# * ?# ###########??????? | | ?????????????????# ## ##???????????????? | | ?????????????????# ### ###??????????????? | | ?????????????????# ### %#!#??????????????? | | ?????????????####### ### ############?????? | | ?????????????#! ] ## # ! #?????? | | ?????????????# ## #######+## #?????? | | ?????????????#" + %/ # ] # #?????? | | ?????????????#T # = g # # #?????? | | ?????????????#" # g # """ # #?????? | | ?????????????# # g # """ # #?????? | | ?????????????###### g # """ !# #?????? | | ??????????????????# # """ # #?????? | | ??????????????????# + """ # #?????? | | ??????????????????###### # # #?????? | | ???????????????????????# # # #?????? | | ??????????????########## ########## #?????? | | ??????????????# # #?????? | | ??????????????# ! """# " ## ###???? | | ??????????????# R"# "" ## #???? | | ??????????????# """# """ ##!!// !#???? | | ??????????????# # """ ##!!//!!#???? | | ??????????????#""" ] # @ "" #########???? | | ??????????????#""" # """ #????#####??? | | ??????????????#""" # "" #??? #??? | | ??????????????# # """ #??? #??? | | ?????????????########/## " #?? #??? | | ?????????????#! + #?? #??? | | ?????????????# # +? #??? | | ?????????????# + ! #? #??? | | ?????????????# ########### # #??? | | ?????????????# ?# # # #??? | | ?????????????# ??# # + #??? | | ?????????????# ??# # #########???? | | ?????????????# ???# + #???????????? | | ?????????????# ???# # ###+##???????????? | | ?????????????##????# # # ???????????? | | ???????????????????# ##### ]!! ?????????? | | ???????????????????# #???# ]! ""???????? | | ???????????????????# #???# ]! """ ?????? | | ???????????????????##########???# ?????? | | ?????????????????????????????????###########?????? | | | | | | | | | | | +----------------------------------------------------+ Best States ------------- Heat Dissipation 45 Energy Generation 15 Energy Capacity 265 Matter Stores 300 Matter Capacity 300 Sight Range 16 Terrain Scan Density 10 Armor Coverage 225 Weapon Shielding 33 Evasion (%) 63 Targeting Accuracy 6 Kinecelleration 30 Defensive Hacking 10 Authchip Count 4 Item Schematics ----------------- None Robot Schematics ------------------ None Fabricated ------------ Nothing Alien Tech Used ----------------- None Achievements -------------- Cya! Challenges ------------ None Game ------ Seed PhasingCannonConstruct Manual? 0 Play Time 01:06:37 Cumulative 17.5 hours Start 2025.01.08 @ 12:21:16 End 2025.01.08 @ 13:25:41 Sessions 1 Manual Loads 0 Difficulty Rogue Special Mode None Game No. 13 Rogue 13 Adventurer 0 Explorer 0 Win Type - Total 0 Types 0/0/0/0/0/0/0/0/0 Lore% 16 Gallery% 19 Achievement% 29 Wizard Run 0 Options --------- Layout 0 ASCII 0 Keyboard 1 Movement Arrows Keybinds 0 Fullscreen 1 Font 12/Proggy Map View 83x54 Zoom Use 0% Tactical HUD 1 Map Filters NONE Filters NONE Steam 0 RUN: 6c71d658-087d-43f5-9b56-e7de24ac385f